fUSD/lending_fUSD_20260127
["ID","MTS","AMOUNT","RATE_DAILY","PERIOD"]
[403751272,1769522176193,-500.0,0.00043378,120]
[403751273,1769522176267,-500.0,0.00043378,120]
[403751274,1769522176340,-500.0,0.00043378,120]
[403751275,1769522176413,-500.0,0.00043378,120]
[403751276,1769522176487,-504.35265395,0.00043378,120]
[403751277,1769522176560,-500.0,0.00043378,120]
[403751278,1769522176633,-500.0,0.00043378,120]
[403751279,1769522176705,-500.0,0.00043378,120]
[403751280,1769522176778,-500.0,0.00043378,120]
[403751281,1769522176851,-500.0,0.00043378,120]
[403751282,1769522176927,-500.0,0.00043378,120]
[403751283,1769522177002,-500.0,0.00043378,120]
[403751284,1769522177081,-500.0,0.00043378,120]
[403751285,1769522177158,-500.0,0.00043378,120]
[403751286,1769522177234,-500.0,0.00043378,120]
[403751287,1769522177310,-500.0,0.00043378,120]
[403751288,1769522177389,-500.0,0.00043378,120]
[403751289,1769522177463,-500.0,0.00043378,120]
[403751290,1769522177537,-153.22828744,0.00043378,120]
[403751291,1769522177611,-500.0,0.00043378,120]
[403751292,1769522178106,-500.0,0.00043378,120]
[403751293,1769522178184,-500.0,0.00043378,120]
[403751294,1769522178259,-500.0,0.00043378,120]
[403751295,1769522178334,-500.0,0.00043378,120]
[403751296,1769522178416,-446.38335056,0.00043378,120]
[403751297,1769522178492,-500.0,0.00043378,120]
[403751298,1769522178566,-500.0,0.00043378,120]
[403751299,1769522178640,-500.0,0.00043378,120]
[403751300,1769522178718,-499.41397076,0.00043378,120]
[403751301,1769522178795,-500.0,0.00043378,120]
[403751302,1769522178878,-500.0,0.00043378,120]
[403751303,1769522178953,-500.0,0.00043378,120]
[403751304,1769522179028,-500.0,0.00043378,120]
[403751305,1769522179108,-500.0,0.00043378,120]
[403751306,1769522179185,-500.0,0.00043378,120]
[403751307,1769522179261,-502.48300112,0.00043378,120]
[403751308,1769522179335,-508.88391411,0.00043378,120]
[403751309,1769522179410,-500.0,0.00043378,120]
[403751310,1769522179483,-582.86177655,0.00043378,120]
[403751311,1769522179557,-500.0,0.00043378,120]
[403751312,1769522179631,-504.60519877,0.00043378,120]
[403751313,1769522179715,-500.0,0.00043378,120]
[403751314,1769522179792,-500.0,0.00043378,120]
[403751315,1769522179876,-505.95065701,0.00043378,120]
[403751316,1769522179960,-500.0,0.00043378,120]
[403751317,1769522180035,-502.4554852,0.00043378,120]
[403751318,1769522180111,-500.0,0.00043378,120]
[403751319,1769522180186,-504.50512138,0.00043378,120]
[403751320,1769522180264,-500.0,0.00043378,120]
[403751321,1769522180338,-588.74593583,0.00043378,120]
[403751322,1769522180413,-627.19537168,0.00043378,120]
[403751323,1769522180487,-500.0,0.00043378,120]
[403751324,1769522180562,-578.79601543,0.00043378,120]
[403751325,1769522180635,-500.0,0.00043378,120]
[403751326,1769522180711,-500.0,0.00043378,120]
[403751327,1769522180796,-500.0,0.00043378,120]
[403751328,1769522180883,-500.0,0.00043378,120]
[403751329,1769522180958,-284.80986206,0.00043378,120]
[403751330,1769522181031,-522.01618377,0.00043378,120]
[403751331,1769522181105,-290.12876084,0.00043378,120]
[403751332,1769522181180,-500.0,0.00043378,120]
[403751333,1769522181253,-500.0,0.00043378,120]
[403751334,1769522181325,-511.37004371,0.00043378,120]
[403751335,1769522181399,-500.0,0.00043378,120]
[403751336,1769522181474,-500.0,0.00043378,120]
[403751337,1769522181546,-510.92689652,0.00043378,120]
[403751338,1769522181621,-500.0,0.00043378,120]
[403751339,1769522181695,-500.0,0.00043378,120]
[403751340,1769522181768,-500.0,0.00043378,120]
[403751341,1769522181844,-216.04799694,0.00043378,120]
[403751342,1769522181918,-500.0,0.00043378,120]
[403751343,1769522181991,-500.0,0.00043378,120]
[403751344,1769522182065,-500.0,0.00043378,120]
[403751345,1769522182136,-500.0,0.00043378,120]
[403751346,1769522182208,-500.0,0.00043378,120]
[403751347,1769522182278,-505.98418666,0.00043378,120]
[403751348,1769522182349,-394.46464213,0.00043378,120]
[403751349,1769522182418,-537.17204037,0.00043378,120]
[403751350,1769522182487,-612.48946221,0.00043378,120]
[403751351,1769522182556,-500.0,0.00043378,120]
[403751352,1769522182625,-500.0,0.00043378,120]
[403751353,1769522182695,-500.0,0.00043378,120]
[403751354,1769522182765,-500.0,0.00043378,120]
[403751355,1769522182842,-500.0,0.00043378,120]
[403751356,1769522182913,-500.0,0.00043378,120]
[403751357,1769522182983,-500.0,0.00043378,120]
[403751358,1769522183054,-500.0,0.00043378,120]
[403751359,1769522183128,-307.25363321,0.00043378,120]
[403751360,1769522183203,-500.0,0.00043378,120]
[403751361,1769522183277,-511.20311139,0.00043378,120]
[403751362,1769522183353,-517.05103764,0.00043378,120]
[403751363,1769522183426,-500.0,0.00043378,120]
[403751364,1769522183497,-500.0,0.00043378,120]
[403751365,1769522183570,-500.0,0.00043378,120]
[403751366,1769522183642,-507.59714237,0.00043378,120]
[403751367,1769522183715,-500.0,0.00043378,120]
[403751368,1769522183788,-500.0,0.00043378,120]
[403751369,1769522183863,-500.0,0.00043378,120]
[403751370,1769522183938,-500.0,0.00043378,120]
[403751371,1769522184011,-500.0,0.00043378,120]
[403751372,1769522184088,-504.85211026,0.00043378,120]
[403751373,1769522184163,-230.2166355,0.00043378,120]
[403751374,1769522184236,-500.0,0.00043378,120]
[403751375,1769522184308,-500.0,0.00043378,120]
[403751376,1769522184380,-506.42521479,0.00043378,120]
[403751377,1769522184452,-500.0,0.00043378,120]
[403751378,1769522184523,-500.0,0.00043378,120]
[403751379,1769522184595,-506.89979324,0.00043378,120]
[403751380,1769522184667,-500.0,0.00043378,120]
[403751381,1769522184736,-500.0,0.00043378,120]
[403751382,1769522184809,-500.0,0.00043378,120]
[403751383,1769522184880,-500.0,0.00043378,120]
[403751384,1769522184952,-500.0,0.00043378,120]
[403751385,1769522185025,-500.0,0.00043378,120]
[403751386,1769522185100,-500.0,0.00043378,120]
[403751387,1769522185477,-310.40199219,0.00043378,120]
[403751388,1769522185552,-512.24727366,0.00043378,120]
[403751389,1769522185626,-480.0,0.00043378,120]
[403751390,1769522185701,-557.79111085,0.00043378,120]
[403751391,1769522185775,-500.0,0.00043378,120]
[403751392,1769522185852,-595.46101439,0.00043378,120]
[403751393,1769522185928,-500.0,0.00043378,120]
[403751394,1769522186002,-500.0,0.00043378,120]
[403751395,1769522186075,-500.0,0.00043378,120]
[403751396,1769522186149,-507.17078005,0.00043378,120]
[403751397,1769522186224,-500.0,0.00043378,120]
[403751398,1769522186296,-500.0,0.00043378,120]
[403751399,1769522186369,-500.0,0.00043378,120]
[403751400,1769522186440,-500.0,0.00043378,120]
[403751401,1769522186517,-500.0,0.00043378,120]
[403751402,1769522186590,-531.01831091,0.00043378,120]
[403751403,1769522186664,-500.0,0.00043378,120]
[403751404,1769522186739,-500.0,0.00043378,120]
[403751405,1769522186814,-500.0,0.00043378,120]
[403751406,1769522186891,-500.0,0.00043378,120]
[403751407,1769522186966,-500.0,0.00043378,120]
[403751408,1769522187041,-198.61696014,0.00043378,120]
[403751409,1769522187122,-500.0,0.00043378,120]
[403751410,1769522187202,-500.0,0.00043378,120]
[403751411,1769522187280,-615.18631098,0.00043378,120]
[403751412,1769522187355,-500.0,0.00043378,120]
[403751413,1769522187430,-500.0,0.00043378,120]
[403751414,1769522187503,-500.0,0.00043378,120]
[403751415,1769522187576,-500.0,0.00043378,120]
[403751416,1769522187651,-500.0,0.00043378,120]
[403751417,1769522187728,-500.0,0.00043378,120]
[403751418,1769522187809,-500.0,0.00043378,120]
[403751419,1769522187885,-500.0,0.00043378,120]
[403751420,1769522187961,-500.0,0.00043378,120]
[403751421,1769522188038,-221.06926998,0.00043378,120]
[403751422,1769522188117,-500.0,0.00043378,120]
[403751423,1769522188199,-500.0,0.00043378,120]
[403751424,1769522188275,-500.0,0.00043378,120]
[403751425,1769522188348,-500.0,0.00043378,120]
[403751426,1769522188419,-500.0,0.00043378,120]
[403751427,1769522188495,-500.0,0.00043378,120]
[403751428,1769522188570,-379.63548715,0.00043378,120]
[403751429,1769522188641,-500.0,0.00043378,120]
[403751430,1769522188712,-500.0,0.00043378,120]
[403751431,1769522188785,-500.0,0.00043378,120]
[403751432,1769522188866,-500.0,0.00043378,120]
[403751433,1769522188940,-500.0,0.00043378,120]
[403751434,1769522189011,-500.0,0.00043378,120]
[403751435,1769522189085,-500.0,0.00043378,120]
[403751436,1769522189160,-621.16048899,0.00043378,120]
[403751437,1769522189234,-500.0,0.00043378,120]
[403751438,1769522189308,-500.0,0.00043378,120]
[403751439,1769522189382,-500.0,0.00043378,120]
[403751440,1769522189456,-500.0,0.00043378,120]
[403751441,1769522189529,-500.0,0.00043378,120]
[403751442,1769522189600,-500.0,0.00043378,120]
[403751443,1769522189671,-500.0,0.00043378,120]
[403751444,1769522189743,-500.0,0.00043378,120]
[403751445,1769522189817,-500.0,0.00043378,120]
[403751446,1769522189890,-500.0,0.00043378,120]
[403751447,1769522189962,-217.50696723,0.00043378,120]
[403751448,1769522190034,-388.92657085,0.00043378,120]
[403751449,1769522190110,-501.64988223,0.00043378,120]
[403751450,1769522190195,-522.15446017,0.00043378,120]
[403751451,1769522190270,-500.0,0.00043378,120]
[403751452,1769522190343,-500.0,0.00043378,120]
[403751453,1769522190417,-500.0,0.00043378,120]
[403751454,1769522190489,-502.15410271,0.00043378,120]
[403751455,1769522190563,-500.0,0.00043378,120]
[403751456,1769522190639,-400.0,0.00043378,120]
[403751457,1769522190711,-503.02003012,0.00043378,120]
[403751458,1769522190783,-502.58914764,0.00043378,120]
[403751459,1769522190857,-145492.65984381,0.00043378,30]
[403751460,1769522190931,-500.0,0.00043378,120]
[403751461,1769522191003,-503.07093087,0.00043378,120]
[403751462,1769522191080,-531.70401336,0.00043378,120]
[403751463,1769522191155,-406.5390068,0.00043378,30]
[403751464,1769522191231,-543.23256166,0.00043378,30]
[403751465,1769522191308,-406.15683085,0.00043378,30]
[403751466,1769522191382,-441.97100999,0.00043378,91]
[403751467,1769522191456,-643.90186281,0.00043378,60]
[403751468,1769522191529,-522.55787184,0.00043378,30]
[403751469,1769522191602,-218.91437541,0.00043378,120]
[403751470,1769522191673,-731.49185524,0.00043378,120]
[403751471,1769522191747,-788.24370481,0.00043378,30]
[403751472,1769522191821,-1095.67098915,0.00043378,30]
[403751473,1769522191895,-1482.9925741,0.00043378,30]
[403751474,1769522191969,-170.18281338,0.00043378,30]
[403751475,1769522192042,-1013.42822893,0.00043378,120]
[403751476,1769522192115,-360.40151641,0.00043378,120]
[403751477,1769522192187,-378.12542527,0.00043378,120]
[403751478,1769522192259,-557.32049767,0.00043378,30]
[403751479,1769522192332,-270.93317086,0.00043378,30]
[403751480,1769522192404,-376.27348075,0.00043378,90]
[403751481,1769522192477,-885.67361641,0.00043378,120]
[403751482,1769522192922,-284.5926299,0.00043378,120]
[403751483,1769522192997,-487.25848632,0.00043378,120]
[403751484,1769522193070,-221.4082772,0.00043378,30]
[403751485,1769522193145,-172.88296317,0.00043378,30]
[403751486,1769522193218,-869.22660449,0.00043378,120]
[403751487,1769522193296,-192.95913557,0.00043378,120]
[403751488,1769522193371,-374.63776215,0.00043378,30]
[403751489,1769522193446,-501.45103983,0.00043378,120]
[403751490,1769522193523,-278.03078055,0.00043378,30]
[403751491,1769522193597,-1226.12638514,0.00043378,120]
[403751492,1769522193672,-441.73769912,0.00043378,120]
[403751493,1769522193747,-417.65275421,0.00043378,120]
[403751494,1769522193822,-270.07408224,0.00043378,30]
[403751495,1769522193901,-677.87160124,0.00043378,30]
[403751496,1769522193977,-287.03992212,0.00043378,120]
[403751497,1769522194054,-303.61589168,0.00043378,120]
[403751498,1769522194130,-155.08287664,0.00043378,120]
[403751499,1769522194206,-367.35885609,0.00043378,120]
[403751500,1769522194282,-624.7489783,0.00043378,120]
[403751501,1769522194355,-812.56510542,0.00043378,120]
[403751502,1769522194427,-175.43698638,0.00043378,120]
[403751503,1769522194500,-385.4676803,0.00043378,120]
[403751504,1769522194580,-173.54474412,0.00043378,120]
[403751505,1769522194657,-270.70246331,0.00043378,120]
[403751506,1769522194739,-276.48142816,0.00043378,30]
[403751507,1769522194814,-529.49572674,0.00043378,120]
[403751508,1769522194888,-265.13589981,0.00043378,120]
[403751509,1769522194964,-248.02782185,0.00043378,120]
[403751510,1769522195037,-295.13349089,0.00043378,30]
[403751511,1769522195112,-414.79708245,0.00043378,120]
[403751512,1769522195186,-390.52426481,0.00043378,30]
[403751513,1769522195260,-387.56103736,0.00043378,30]
[403751514,1769522195339,-500.0,0.00043378,120]
[403751515,1769522195412,-500.0,0.00043378,120]
[403751516,1769522195485,-500.0,0.00043378,120]
[403751517,1769522195559,-500.0,0.00043378,120]
[403751518,1769522195633,-500.0,0.00043378,120]
[403751519,1769522195705,-500.0,0.00043378,120]
[403751520,1769522195779,-500.0,0.00043378,120]
[403751521,1769522195855,-500.0,0.00043378,120]
[403751522,1769522195932,-500.0,0.00043378,120]
[403751523,1769522196008,-500.0,0.00043378,120]
[403751524,1769522196083,-500.0,0.00043378,120]
[403751525,1769522196157,-500.0,0.00043378,120]
[403751526,1769522196234,-500.0,0.00043378,120]
[403751527,1769522196308,-500.0,0.00043378,120]
[403751528,1769522196378,-500.0,0.00043378,120]
[403751529,1769522196451,-500.0,0.00043378,120]
[403751530,1769522196523,-500.0,0.00043378,120]
[403751531,1769522196596,-520.45373284,0.00043378,120]
[403751532,1769522196675,-200.96945904,0.00043378,120]
[403751533,1769522196747,-1000.0,0.00043378,120]
[403751534,1769522196821,-267.82034679,0.00043378,120]
[403751535,1769522196897,-373.90323908,0.00043378,120]
[403751536,1769522196970,-302.54131366,0.00043378,120]
[403751537,1769522197043,-331.81570639,0.00043378,120]
[403751538,1769522197118,-360.45077191,0.00043378,30]
[403751539,1769522197194,-320.80577024,0.00043378,120]
[403751540,1769522197273,-284.14031035,0.00043378,30]
[403751541,1769522197349,-210.33839077,0.00043378,30]
[403751542,1769522197424,-183.76545718,0.00043378,30]
[403751543,1769522197498,-251.25291465,0.00043378,120]
[403751544,1769522197572,-164.99188867,0.00043378,120]
[403751545,1769522197645,-860.91869603,0.00043378,30]
[403751546,1769522197721,-286.1832752,0.00043378,30]
[403751547,1769522197796,-1185.76794929,0.00043378,120]
[403751548,1769522197874,-875.82457471,0.00043378,30]
[403751549,1769522197950,-182.74414215,0.00043378,120]
[403751550,1769522198024,-363.93333014,0.00043378,30]
[403751551,1769522198099,-181.86541434,0.00043378,120]
[403751552,1769522198176,-266.62921572,0.00043378,120]
[403751553,1769522198252,-409.43738454,0.00043378,120]
[403751554,1769522198326,-518.35040794,0.00043378,120]
[403751555,1769522198400,-180.98097899,0.00043378,120]
[403751556,1769522198473,-156.97093751,0.00043378,30]
[403751557,1769522198544,-708.74372914,0.00043378,120]
[403751558,1769522198616,-553.22652926,0.00043378,120]
[403751559,1769522198686,-548.34566929,0.00043378,120]
[403751560,1769522198758,-303.4463819,0.00043378,120]
[403751561,1769522198838,-691.71988086,0.00043378,120]
[403751562,1769522198913,-321.59158568,0.00043378,120]
[403751563,1769522198987,-1243.89548476,0.00043378,30]
[403751564,1769522199064,-614.63861731,0.00043378,120]
[403751565,1769522199143,-398.07598162,0.00043378,120]
[403751566,1769522199220,-197.1519237,0.00043378,120]
[403751567,1769522199296,-2019.18081783,0.00043378,120]
[403751568,1769522199368,-871.85250151,0.00043378,30]
[403751569,1769522199440,-787.72502985,0.00043378,30]
[403751570,1769522199512,-275.06991874,0.00043378,120]
[403751571,1769522199581,-482.96720416,0.00043378,60]
[403751572,1769522199653,-694.95651441,0.00043378,120]
[403751573,1769522199724,-264.07241358,0.00043378,120]
[403751574,1769522199795,-406.70341555,0.00043378,30]
[403751575,1769522199870,-478.85581437,0.00043378,120]
[403751576,1769522199944,-510.98525742,0.00043378,120]
[403751577,1769522200017,-200.51680915,0.00043378,30]
[403751578,1769522200406,-495.03707833,0.00043378,30]
[403751579,1769522200479,-500.0,0.00043378,120]
[403751580,1769522200554,-154.85416473,0.00043378,120]
[403751581,1769522200628,-217.25512803,0.00043378,120]
[403751582,1769522200701,-806.5211289,0.00043378,120]
[403751583,1769522200774,-371.49222429,0.00043378,55]
[403751584,1769522200847,-284.26121265,0.00043378,120]
[403751585,1769522200923,-927.17603334,0.00043378,30]
[403751586,1769522200999,-349.59355477,0.00043378,120]
[403751587,1769522201075,-180.55028991,0.00043378,120]
[403751588,1769522201151,-588.44790424,0.00043378,30]
[403751589,1769522201226,-484.00162733,0.00043378,120]
[403751590,1769522201301,-482.54664504,0.00043378,120]
[403751591,1769522201377,-500.0,0.00043378,120]
[403751592,1769522201454,-500.0,0.00043378,120]
[403751593,1769522201530,-500.0,0.00043378,120]
[403751594,1769522201604,-580.0,0.00043378,120]
[403751595,1769522201676,-500.0,0.00043378,120]
[403751596,1769522201751,-500.0,0.00043378,120]
[403751597,1769522201829,-500.0,0.00043378,120]
[403751598,1769522201905,-500.0,0.00043378,120]
[403751599,1769522201981,-500.0,0.00043378,120]
[403751600,1769522202057,-500.0,0.00043378,120]
[403751601,1769522202134,-500.0,0.00043378,120]
[403751602,1769522202209,-500.0,0.00043378,120]
[403751603,1769522202285,-500.0,0.00043378,120]
[403751604,1769522202359,-500.0,0.00043378,120]
[403751605,1769522202432,-500.0,0.00043378,120]
[403751606,1769522202505,-500.0,0.00043378,120]
[403751607,1769522202578,-500.0,0.00043378,120]
[403751608,1769522202652,-500.0,0.00043378,120]
[403751609,1769522202726,-500.0,0.00043378,120]
[403751610,1769522202800,-500.0,0.00043378,120]
[403751611,1769522202879,-500.0,0.00043378,120]
[403751612,1769522202953,-500.0,0.00043378,120]
[403751613,1769522203027,-500.0,0.00043378,120]
[403751614,1769522203102,-519.04182249,0.00043378,120]
[403751615,1769522203178,-192.62015515,0.00043378,120]
[403751616,1769522203252,-500.0,0.00043378,120]
[403751617,1769522203325,-790.14,0.00043378,120]
[403751618,1769522203399,-790.14,0.00043378,120]
[403751619,1769522203471,-790.14,0.00043378,120]
[403751620,1769522203544,-790.14,0.00043378,120]
[403751621,1769522203619,-790.14,0.00043378,120]
[403751622,1769522203692,-790.14,0.00043378,120]
[403751623,1769522203765,-790.14,0.00043378,120]
[403751624,1769522203840,-790.14,0.00043378,120]
[403751625,1769522203918,-790.14,0.00043378,120]
[403751626,1769522203991,-790.14,0.00043378,120]
[403751627,1769522204065,-790.14,0.00043378,120]
[403751628,1769522204139,-790.14,0.00043378,120]
[403751629,1769522204213,-790.14,0.00043378,120]
[403751630,1769522204287,-790.14,0.00043378,120]
[403751631,1769522204361,-790.14,0.00043378,120]
[403751632,1769522204433,-790.14,0.00043378,120]
[403751633,1769522204506,-790.14,0.00043378,120]
[403751634,1769522204578,-790.14,0.00043378,120]
[403751635,1769522204651,-790.14,0.00043378,120]
[403751636,1769522204724,-790.14,0.00043378,120]
[403751637,1769522204797,-790.14,0.00043378,120]
[403751638,1769522204877,-790.14,0.00043378,120]
[403751639,1769522204953,-790.14,0.00043378,120]
[403751640,1769522205028,-790.15842331,0.00043378,120]
[403751641,1769522205102,-500.0,0.00043378,120]
[403751642,1769522205179,-500.0,0.00043378,120]
[403751643,1769522205252,-562.06,0.00043378,120]
[403751644,1769522205324,-965.04,0.00043378,120]
[403751645,1769522205398,-200.13,0.00043378,120]
[403751646,1769522205471,-500.0,0.00043378,120]
[403751647,1769522205543,-567.21,0.00043378,120]
[403751648,1769522205615,-198.68571994,0.00043378,120]
[403751649,1769522205688,-231.85635308,0.00043378,120]
[403751650,1769522205762,-500.0,0.00043378,120]
[403751651,1769522205838,-500.0,0.00043378,120]
[403751652,1769522205916,-3485.84,0.00043378,120]
[403751653,1769522205991,-3485.84,0.00043378,120]
[403751654,1769522206066,-3485.84,0.00043378,120]
[403751655,1769522206141,-3485.84,0.00043378,120]
[403751656,1769522206214,-3485.84,0.00043378,120]
[403751657,1769522206288,-3485.84,0.00043378,120]
[403751658,1769522206361,-3485.84,0.00043378,120]
[403751659,1769522206434,-3485.84,0.00043378,120]
[403751660,1769522206507,-3485.84,0.00043378,120]
[403751661,1769522206580,-3485.84,0.00043378,120]
[403751662,1769522206652,-3485.84,0.00043378,120]
[403751663,1769522206728,-3485.84,0.00043378,120]
[403751664,1769522206803,-3485.84,0.00043378,120]
[403751665,1769522206882,-3485.84,0.00043378,120]
[403751666,1769522206957,-3485.84,0.00043378,120]
[403751667,1769522207035,-3485.84,0.00043378,120]
[403751668,1769522207110,-3485.84,0.00043378,120]
[403751669,1769522207186,-3485.84,0.00043378,120]
[403751670,1769522207263,-3485.84,0.00043378,120]
[403751671,1769522207337,-3485.84,0.00043378,120]
[403751672,1769522207411,-3485.84,0.00043378,120]
[403751673,1769522207702,-3485.84,0.00043378,120]
[403751674,1769522207780,-3485.84,0.00043378,120]
[403751675,1769522207868,-3485.89711905,0.00043378,120]
[403751676,1769522207947,-4084.17,0.00043378,120]
[403751677,1769522208038,-4084.17,0.00043378,120]
[403751678,1769522208115,-4084.17,0.00043378,120]
[403751679,1769522208193,-4084.17,0.00043378,120]
[403751680,1769522208269,-4084.17,0.00043378,120]
[403751681,1769522208343,-4084.17,0.00043378,120]
[403751682,1769522208416,-4084.17,0.00043378,120]
[403751683,1769522208489,-4084.17,0.00043378,120]
[403751684,1769522208562,-4084.17,0.00043378,120]
[403751685,1769522208637,-4084.17,0.00043378,120]
[403751686,1769522208710,-4084.17,0.00043378,120]
[403751687,1769522208784,-4084.17,0.00043378,120]
[403751688,1769522208861,-4084.17,0.00043378,120]
[403751689,1769522208937,-4084.17,0.00043378,120]
[403751690,1769522209014,-4084.17,0.00043378,120]
[403751691,1769522209092,-4084.17,0.00043378,120]
[403751692,1769522209169,-4084.17,0.00043378,120]
[403751693,1769522209245,-4084.17,0.00043378,120]
[403751694,1769522209319,-4084.17,0.00043378,120]
[403751695,1769522209394,-4084.17,0.00043378,120]
[403751696,1769522209469,-4084.17,0.00043378,120]
[403751697,1769522209543,-4084.17,0.00043378,120]
[403751698,1769522209617,-4084.17,0.00043378,120]
[403751699,1769522209695,-4084.34609605,0.00043378,120]
[403751700,1769522209771,-4509.17,0.00043378,120]
[403751701,1769522209848,-4509.17,0.00043378,120]
[403751702,1769522209929,-4509.17,0.00043378,120]
[403751703,1769522210008,-4509.17,0.00043378,120]
[403751704,1769522210083,-4509.17,0.00043378,120]
[403751705,1769522210159,-4509.17,0.00043378,120]
[403751706,1769522210234,-4509.17,0.00043378,120]
[403751707,1769522210308,-4509.17,0.00043378,120]
[403751708,1769522210382,-4509.17,0.00043378,120]
[403751709,1769522210455,-4509.17,0.00043378,120]
[403751710,1769522210528,-4509.17,0.00043378,120]
[403751711,1769522210598,-4509.17,0.00043378,120]
[403751712,1769522210673,-4509.17,0.00043378,120]
[403751713,1769522210746,-4509.17,0.00043378,120]
[403751714,1769522210819,-4509.17,0.00043378,120]
[403751715,1769522210894,-4509.17,0.00043378,120]
[403751716,1769522210966,-4509.17,0.00043378,120]
[403751717,1769522211040,-4509.17,0.00043378,120]
[403751718,1769522211118,-4509.17,0.00043378,120]
[403751719,1769522211192,-4509.17,0.00043378,120]
[403751720,1769522211267,-4509.17,0.00043378,120]
[403751721,1769522211339,-4509.17,0.00043378,120]
[403751722,1769522211410,-4509.17,0.00043378,120]
[403751723,1769522211482,-4509.17458244,0.00043378,120]
[403751724,1769522211556,-4944.91,0.00043378,120]
[403751725,1769522211631,-4944.91,0.00043378,120]
[403751726,1769522211704,-4944.91,0.00043378,120]
[403751727,1769522211779,-4944.91,0.00043378,120]
[403751728,1769522211853,-4944.91,0.00043378,120]
[403751729,1769522211928,-4944.91,0.00043378,120]
[403751730,1769522212000,-4944.91,0.00043378,120]
[403751731,1769522212074,-4944.91,0.00043378,120]
[403751732,1769522212145,-4944.91,0.00043378,120]
[403751733,1769522212215,-4944.91,0.00043378,120]
[403751734,1769522212284,-4944.91,0.00043378,120]
[403751735,1769522212354,-4944.91,0.00043378,120]
[403751736,1769522212425,-4944.91,0.00043378,120]
[403751737,1769522212496,-4944.91,0.00043378,120]
[403751738,1769522212564,-4944.91,0.00043378,120]
[403751739,1769522212632,-4944.91,0.00043378,120]
[403751740,1769522212701,-4944.91,0.00043378,120]
[403751741,1769522212774,-4944.91,0.00043378,120]
[403751742,1769522212858,-4944.91,0.00043378,120]
[403751743,1769522212931,-4944.91,0.00043378,120]
[403751744,1769522213002,-4944.91,0.00043378,120]
[403751745,1769522213074,-4944.91,0.00043378,120]
[403751746,1769522213149,-4944.91,0.00043378,120]
[403751747,1769522213222,-4944.95774558,0.00043378,120]
[403751748,1769522213295,-3472.08,0.00043378,120]
[403751749,1769522213368,-3472.08,0.00043378,120]
[403751750,1769522213442,-3472.08,0.00043378,120]
[403751751,1769522213514,-3472.08,0.00043378,120]
[403751752,1769522213586,-3472.08,0.00043378,120]
[403751753,1769522213657,-3472.08,0.00043378,120]
[403751754,1769522213729,-3472.08,0.00043378,120]
[403751755,1769522213803,-3472.08,0.00043378,120]
[403751756,1769522213882,-3472.08,0.00043378,120]
[403751757,1769522213962,-3472.08,0.00043378,120]
[403751758,1769522214037,-3472.08,0.00043378,120]
[403751759,1769522214117,-3472.08,0.00043378,120]
[403751760,1769522214190,-3472.08,0.00043378,120]
[403751761,1769522214263,-3472.08,0.00043378,120]
[403751762,1769522214334,-3472.08,0.00043378,120]
[403751763,1769522214405,-3472.08,0.00043378,120]
[403751764,1769522214475,-3472.08,0.00043378,120]
[403751765,1769522214550,-3472.08,0.00043378,120]
[403751766,1769522214622,-3472.08,0.00043378,120]
[403751767,1769522215060,-3472.08,0.00043378,120]
[403751768,1769522215142,-3472.08,0.00043378,120]
[403751769,1769522215217,-3472.08,0.00043378,120]
[403751770,1769522215292,-3472.08,0.00043378,120]
[403751771,1769522215365,-3472.19031778,0.00043378,120]